bitfinex-derivatives/quotes_SOLF0:USTF0_20250228
["timestamp","ask_amount","ask_price","bid_price","bid_amount"]
[1740728697011,0.05796649,128.13,128.11,0.05932024]
[1740728697211,7.81,128.18,128.11,0.05932024]
[1740728697411,0.05708983,128.13,128.11,5.7500887]
[1740728697605,0.05350486,128.13,128.11,5.7500887]
[1740728698211,7.81,128.18,128.11,5.7500887]
[1740728698407,7.81,128.18,128.12,1.958]
[1740728698812,7.81,128.18,128.12,7.64876846]
[1740728699215,212.44,128.21,128.12,7.64876846]
[1740728699514,0.04966101,128.16,128.14,0.04917058]
[1740728699714,1.41862993,128.2,128.06,1.9514]
[1740728700013,7.8134,128.13,128.06,1.9514]
[1740728700213,23.48,128.19,128.06,7.64216846]
[1740728700408,1.41900179,128.18,128.06,7.64216846]
[1740728700815,0.05150894,128.13,128.11,0.0588884]
[1740728701213,13.98,128.15,128.11,0.0588884]
[1740728701414,7.8141,128.12,128.11,0.0588884]
[1740728701716,0.05009223,128.13,128.06,1.9514]
[1740728701916,0.05009223,128.13,128.0,32.00256653]
[1740728702117,1.41944515,128.13,128.01,3.7981]
[1740728702616,1.41944515,128.13,128.0,32.00256653]
[1740728702923,0.05498831,128.08,128.06,6.72e-06]
[1740728703120,13.98,128.07,128.06,6.72e-06]
[1740728703415,21.7966,128.07,128.06,6.72e-06]
[1740728704217,25.6966,128.07,128.06,6.72e-06]
[1740728704420,27.11673496,128.07,128.06,6.72e-06]
[1740728704616,7.8226,127.98,127.94,32.00256653]
[1740728704818,13.98,128.0,127.94,32.00256653]
[1740728705319,17.11631637,128.05,127.94,32.00256653]
[1740728705517,0.4943,128.07,127.94,32.00256653]
[1740728705713,7.8173,128.06,127.94,32.00256653]
[1740728706016,0.05771984,128.02,127.99,0.05386402]
[1740728706217,13.98,128.13,127.99,0.05386402]
[1740728706417,42.83388112,128.11,127.97,13.98]
[1740728706812,7.8162,128.08,127.97,19.67077518]
[1740728707316,0.05478941,128.04,128.01,0.05964126]
[1740728707518,42.83388112,128.11,128.01,5.75041644]
[1740728707718,42.83388112,128.11,128.02,1.9401]
[1740728708917,0.05904027,128.08,128.05,0.04952099]
[1740728709316,0.05904027,128.08,127.96,7.8227]
[1740728709516,23.45,128.1,127.97,1.8695]
[1740728709712,0.5543,128.09,127.98,7.822]
[1740728710219,0.5543,128.09,127.98,5.69077518]
[1740728710523,0.05171597,128.05,128.02,1.485e-05]
[1740728710719,7.8191,128.03,128.02,1.485e-05]
[1740728710920,31.2691,128.03,128.02,1.485e-05]
[1740728711114,36.58883263,128.03,128.02,1.485e-05]
[1740728711316,7.8246,127.94,127.9,1.8695]
[1740728711616,7.8246,127.94,127.86,2.0224]
[1740728711617,37.43,127.97,127.86,2.0224]
[1740728711820,7.8252,127.93,127.86,7.71319003]
[1740728712014,0.1108,127.96,127.86,2.0224]
[1740728712324,0.1108,127.96,127.86,7.71319003]
[1740728712526,7.88169891,127.92,127.9,0.053207]
[1740728712822,0.05539891,127.92,127.9,0.053207]
[1740728715324,7.88169891,127.92,127.9,0.053207]
[1740728715519,0.05539891,127.92,127.9,0.053207]
[1740728717424,0.05539891,127.92,127.84,1.971]
[1740728717624,7.8293,127.87,127.84,7.66179003]
[1740728718024,13.98,127.9,127.84,7.66179003]
[1740728718723,0.05255375,127.88,127.86,0.05752181]
[1740728718925,0.05255375,127.88,127.86,2.181e-05]
[1740728719127,7.8288,127.87,127.86,2.181e-05]
[1740728719520,11.7488,127.87,127.86,2.181e-05]
[1740728721732,7.8288,127.87,127.86,2.181e-05]
[1740728721931,11.7488,127.87,127.86,2.181e-05]
[1740728722137,7.8288,127.87,127.86,2.181e-05]
[1740728724937,0.05255375,127.88,127.86,2.181e-05]
[1740728725135,14.0,127.94,127.86,2.181e-05]
[1740728725337,7.8287,127.88,127.86,5.69081184]
[1740728725533,14.0,127.94,127.86,5.69079003]
[1740728726036,7.8282,127.89,127.86,5.69079003]
[1740728726232,0.05990541,127.91,127.89,0.05173698]
[1740728726430,7.8275,127.9,127.89,3.698e-05]
[1740728726631,0.05990541,127.91,127.81,7.8322]
[1740728727035,37.45,127.94,127.81,5.69079003]
[1740728727235,2.97575114,127.93,127.81,5.69079003]
[1740728727436,1.41239619,127.92,127.75,1.9385]
[1740728727731,7.833,127.81,127.75,7.62929003]
[1740728727933,14.0,127.85,127.82,0.05919191]
[1740728728131,14.0,127.86,127.77,7.8348]
[1740728728340,0.05247058,127.79,127.75,7.62929003]
[1740728728535,14.0,127.86,127.75,7.62929003]
[1740728728736,14.0,127.86,127.78,7.8342]
[1740728729136,0.05495809,127.82,127.75,1.9385]
[1740728729337,14.0,127.86,127.81,0.05628197]
[1740728729639,14.0,127.86,127.75,1.9385]
[1740728729840,14.0,127.86,127.75,7.62929003]
[1740728730540,7.8326,127.81,127.79,0.05180631]
[1740728731039,7.8326,127.81,127.79,5.74259634]
[1740728731440,0.05539764,127.82,127.79,0.05180631]
[1740728731441,7.8331,127.8,127.79,0.05180631]
[1740728732241,7.8331,127.8,127.62,47.0626]
[1740728732242,0.05539764,127.82,127.62,23.5313]
[1740728732444,23.45,127.8,127.69,2.0107]
[1740728732639,37.45,127.79,127.69,2.0107]
[1740728732943,14.0,127.79,127.69,2.0107]
[1740728733244,14.0,127.79,127.7,2.012]
[1740728733541,0.05052772,127.75,127.73,0.05561216]
[1740728733741,14.0,127.83,127.73,0.05561216]
[1740728733943,7.8336,127.8,127.7,2.012]
[1740728734345,14.0,127.83,127.7,2.012]
[1740728734549,21.8315,127.83,127.7,2.012]
[1740728734747,14.0,127.83,127.7,2.012]
[1740728734952,0.0562856,127.78,127.75,7.88508314]
[1740728735151,7.8323,127.82,127.76,1.867]
[1740728735453,226.9,127.85,127.76,1.867]
[1740728735648,7.8318,127.83,127.77,1.917]
[1740728735848,26.25749341,128.29,127.77,1.917]
[1740728735849,193.30004747,127.93,127.77,1.917]
[1740728736049,0.7783,127.92,127.77,1.917]
[1740728736252,0.05679869,127.86,127.84,0.05127304]
[1740728736453,7.8301,127.85,127.84,0.05127304]
[1740728736751,14.0,127.87,127.77,1.917]
[1740728737051,14.0,127.87,127.83,0.05142167]
[1740728737841,0.05195451,127.86,127.77,1.917]
[1740728738043,23.50195451,127.86,127.77,7.60779003]
[1740728738246,23.45,127.86,127.77,7.60779003]
[1740728738448,14.0,127.87,127.77,7.60779003]
[1740728738449,37.45,127.87,127.77,1.917]
[1740728738645,45.2793,127.87,127.8,7.8326]
[1740728738847,1.8616,127.89,127.77,1.917]
[1740728739048,0.05584675,127.85,127.82,0.05279694]
[1740728739442,190.0,127.91,127.82,0.05279694]
[1740728739648,0.7783,127.92,127.82,5.74358697]
[1740728739849,23.45,127.89,127.82,5.69079003]
[1740728740050,0.7783,127.92,127.77,1.917]
[1740728740554,0.7783,127.92,127.77,7.60779003]
[1740728740754,0.04963933,127.86,127.83,0.05418431]
[1740728740950,0.7783,127.92,127.77,7.60779003]
[1740728741255,0.06009493,127.86,127.83,0.05112694]
[1740728741553,0.7783,127.92,127.77,1.917]
[1740728741753,0.05152157,127.86,127.83,0.05883401]
[1740728742146,0.7783,127.92,127.83,5.69079003]
[1740728742344,0.05479719,127.86,127.83,13.57351755]
[1740728742544,0.7783,127.92,127.83,13.57351755]
[1740728742545,0.7783,127.92,127.83,5.69079003]
[1740728742753,0.05412279,127.86,127.83,5.74944443]
[1740728742954,2.4797,127.92,127.83,5.69079003]
[1740728743155,0.05360729,127.86,127.83,5.74447546]
[1740728743352,3.30004747,127.93,127.77,1.917]
[1740728743551,0.05720177,127.86,127.83,0.0546442]
[1740728743756,0.05720177,127.86,127.84,7.8307]
[1740728743955,7.8274,127.9,127.84,7.8307]
[1740728744255,0.05877985,127.86,127.84,13.52149003]
[1740728744654,7.8272,127.9,127.84,13.57467023]
[1740728744955,0.05539072,127.86,127.85,7.8301]
[1740728745154,7.8264,127.91,127.78,196.8644]
[1740728745356,3.30004747,127.93,127.9,7.827]
[1740728745555,1.56335495,127.93,127.78,212.5326]
[1740728745855,2.0262,128.0,127.94,7.8242]
[1740728746057,42.83388112,128.01,127.86,14.0]
[1740728746253,42.83388112,128.01,127.87,3.801]
[1740728746454,42.83388112,128.01,127.92,0.05015648]
[1740728746852,33.54468112,128.01,127.88,1.43740198]
[1740728747052,33.54468112,128.01,127.99,7.821]
[1740728747457,33.54468112,128.01,127.87,3.801]
[1740728747651,33.54468112,128.01,127.88,1.43734996]
[1740728747851,33.59879874,128.01,127.99,0.05430611]
[1740728748156,33.54468112,128.01,127.93,13.98]
[1740728748556,33.60139217,128.01,127.99,0.05281711]
[1740728748755,14.0,128.08,127.93,13.98]
[1740728748959,0.05794935,128.01,127.93,13.98]
[1740728749154,0.05794935,128.01,127.99,0.05865485]
[1740728749359,14.0,128.08,127.93,13.98]
[1740728749547,0.05651964,128.01,127.99,0.05048699]
[1740728750055,14.0,128.08,127.99,5.69077696]
[1740728750251,0.05829738,128.01,127.99,5.74242223]
[1740728750449,0.05829738,128.01,127.99,0.05164527]
[1740728750651,1.4162561,128.07,127.88,13.98]
[1740728750851,0.05158216,128.01,127.99,0.05679098]
[1740728751357,1.56164597,128.07,127.88,13.98]
[1740728751555,0.05290892,128.01,127.99,0.05241822]
[1740728751753,0.05290892,128.01,127.88,19.67077696]
[1740728752060,7.8208,128.01,127.99,0.05300977]
[1740728752355,7.8208,128.01,127.89,3.9686]
[1740728752556,7.822,127.99,127.92,7.8257]
[1740728752751,13.98,128.01,127.89,9.65937696]
[1740728752949,0.04942632,127.97,127.94,0.05369415]
[1740728753151,0.04942632,127.97,127.94,5.74447111]
[1740728754049,0.04942632,127.97,127.94,0.05369415]
[1740728754849,7.8239,127.95,127.94,0.05369415]
[1740728755054,0.04942632,127.97,127.87,1.8644]
[1740728755260,0.04942632,127.97,127.87,7.55517696]
[1740728755558,29.1538,128.0,127.87,7.55517696]
[1740728755559,7.8268,127.91,127.87,7.55517696]
[1740728755762,1.40899786,127.99,127.87,5.69077696]
[1740728756457,0.05259995,127.94,127.92,0.05229004]
[1740728756657,14.03259995,127.94,127.92,0.05229004]
[1740728756860,13.98,127.94,127.92,0.05229004]
[1740728757060,14.03777702,127.94,127.92,0.05229004]
[1740728757354,14.03777702,127.94,127.83,5.7698]
[1740728757559,14.03777702,127.94,127.83,9.59977696]
[1740728757761,13.98,127.94,127.83,9.59977696]
[1740728757960,13.98,127.94,127.83,7.63897696]
[1740728758560,0.05803324,127.9,127.87,0.0504713]
[1740728759262,7.8282,127.89,127.87,0.0504713]
[1740728759659,0.05803324,127.9,127.87,0.0504713]
[1740728760263,13.98,127.96,127.87,0.0504713]
[1740728760660,13.98,127.96,127.87,5.69077696]
[1740728760856,13.98,127.96,127.84,3.8044]
[1740728761365,13.98,127.96,127.84,9.49517696]
[1740728761566,0.06018649,127.91,127.89,0.05783322]
[1740728761967,13.98,127.98,127.89,5.74861018]
[1740728762157,1.40899786,127.99,127.89,5.74861018]
[1740728762158,0.06002655,127.91,127.89,0.05783322]
[1740728762362,1.40899786,127.99,127.89,0.05783322]
[1740728762363,1.40899786,127.99,127.89,3.9]
[1740728762563,1.40899786,127.99,127.9,1.8636]
[1740728763068,1.40899786,127.99,127.9,7.55437696]
[1740728763368,1.9749,127.98,127.9,1.8636]
[1740728763567,0.05414937,127.96,127.93,0.05843209]
[1740728764271,0.05414937,127.96,127.94,7.8241]
[1740728764569,1.40899786,127.99,127.93,0.05843209]
[1740728764969,1.40899786,127.99,127.96,7.8228]
[1740728765172,1.40899786,127.99,127.93,0.05843209]
[1740728765365,1.40899786,127.99,127.91,196.965]
[1740728765562,1.9749,128.05,127.91,196.965]
[1740728765768,13.98,128.08,127.94,0.0600636]
[1740728765966,9.37854597,128.07,127.99,7.821]
[1740728766167,1.56164597,128.07,127.91,196.965]
[1740728766464,7.8184,128.05,127.91,1.965]
[1740728767069,0.05817176,127.99,127.97,0.05363543]
[1740728767468,1.56164597,128.07,127.97,0.05363543]
[1740728767469,1.56164597,128.07,127.97,5.69077696]
[1740728767768,1.56164597,128.07,127.97,195.0]
[1740728767960,0.05038692,128.03,127.97,195.0]
[1740728768161,1.56164597,128.07,128.01,0.05724538]
[1740728768359,1.56164597,128.07,128.01,5.74802234]
[1740728768566,23.45,128.15,128.01,5.69077696]
[1740728768868,23.45,128.13,128.01,5.69077696]
[1740728769069,2.95563471,128.12,128.01,5.69077696]
[1740728769367,7.8205,128.01,127.91,1.965]
[1740728769563,13.98,128.05,127.91,7.65577696]
[1740728769769,3.809,128.04,127.91,7.65577696]
[1740728769968,0.0601394,127.99,127.97,0.0509216]
[1740728770371,3.809,128.04,127.97,0.0509216]
[1740728770572,0.04936585,127.99,127.97,5.74169856]
[1740728770869,0.05082368,127.99,127.97,5.74169856]
[1740728771269,23.45,128.16,127.97,3.9509216]
[1740728771470,13.98,128.13,127.97,0.0509216]
[1740728771669,13.98,128.13,127.94,13.98]
[1740728772373,13.98,128.13,128.03,7.819]
[1740728772573,0.03941322,128.05,128.04,2.0306]
[1740728772770,37.43,128.13,127.95,13.84543425]
[1740728772968,0.03941322,128.06,128.03,0.051105]
[1740728773161,7.8184,128.04,128.03,0.051105]
[1740728773471,0.03941322,128.05,128.03,5.69077696]
[1740728773871,1.9658,128.11,127.96,3.9269]
[1740728774170,0.03941322,128.05,128.03,0.05073383]
[1740728774568,1.9658,128.11,127.96,3.9269]
[1740728774871,0.03941322,128.05,128.03,0.05509934]
[1740728775268,1.9658,128.11,127.96,3.9269]
[1740728775467,0.03941322,128.05,128.03,0.05685959]
[1740728775669,1.9658,128.11,127.96,9.61767696]
[1740728775869,1.9658,128.11,128.03,0.05583592]
[1740728776165,1.9658,128.11,127.96,9.61767696]
[1740728776477,0.03941322,128.08,128.06,0.05363628]
[1740728776670,7.8187,128.04,127.98,7.8221]
[1740728776972,1.9658,128.11,127.96,9.61767696]
[1740728776973,1.9658,128.11,128.0,0.05073773]
[1740728777271,0.03941322,128.02,127.96,9.61767696]
[1740728777574,0.03941322,128.05,128.04,0.05932627]
[1740728777770,7.8203,128.01,127.96,17.44087696]
[1740728777965,1.9511,128.09,127.96,17.44087696]
[1740728777966,0.03941322,128.06,128.03,1.468e-05]
[1740728778169,1.9511,128.09,127.96,9.61767696]
[1740728778370,440.07,128.08,127.96,5.69077696]
[1740728778576,441.46373487,128.08,127.86,17.9209]
[1740728778773,23.45,128.01,127.91,5.69077696]
[1740728779072,43.2468,128.0,127.91,5.69077696]
[1740728779274,0.05260375,127.97,127.95,0.05155814]
[1740728779472,0.05260375,127.97,127.86,3.9609]
[1740728779674,0.05260375,127.97,127.86,9.65167696]
[1740728779873,43.2468,128.0,127.86,9.65167696]
[1740728780370,23.45,127.98,127.86,5.69077696]
[1740728780571,23.45,127.96,127.86,5.69077696]
[1740728780875,7.8258,127.92,127.91,5.626e-05]
[1740728781378,7.8288,127.88,127.82,7.8318]
[1740728781776,23.45,127.96,127.81,3.9609]
[1740728781978,0.05289619,127.86,127.84,0.05112408]
[1740728782271,23.45,127.96,127.81,3.9609]
[1740728782475,0.05742615,127.86,127.84,0.05217052]
[1740728782775,212.66,127.97,127.81,3.9609]
[1740728782975,212.66,127.97,127.84,1.9615]
[1740728783777,236.11,127.97,127.84,1.9615]
[1740728784074,7.8273,127.9,127.89,0.05065]
[1740728784473,7.8294,127.87,127.81,11.7934]
[1740728784674,7.8294,127.87,127.81,3.9609]
[1740728784870,7.8294,127.87,127.83,0.05158088]
[1740728785172,0.05140876,127.85,127.83,0.05158088]
[1740728789181,3.8337,127.92,127.83,3.97158088]
[1740728789381,1.9885,127.96,127.81,3.9609]
[1740728790373,0.05928703,127.9,127.87,0.04972117]
[1740728790575,7.828,127.89,127.84,7.8303]
[1740728790771,0.05994575,127.9,127.87,0.05556342]
[1740728791071,1.38684282,127.95,127.82,7.8317]
[1740728791276,0.04984306,127.9,127.87,0.05838515]
[1740728791485,0.04984306,127.9,127.82,7.8317]
[1740728791676,1.38684282,127.95,127.87,0.05036791]
[1740728791978,1.38684282,127.95,127.82,7.8317]
[1740728792179,7.8293,127.87,127.82,7.8317]
[1740728792578,7.8293,127.87,127.83,0.0560386]
[1740728792778,7.88181444,127.86,127.83,0.0560386]
[1740728792979,7.8295,127.86,127.83,7.8312]
[1740728793181,7.88340758,127.86,127.83,7.88869763]
[1740728793379,7.88340758,127.86,127.83,0.05749763]
[1740728793779,7.8307,127.84,127.83,0.05749763]
[1740728796180,0.05390758,127.86,127.74,2.0568]
[1740728796380,29.4547,127.89,127.74,2.0568]
[1740728796684,1.38789725,127.88,127.74,2.0568]
[1740728796981,1.38789725,127.88,127.74,9.8931]
[1740728797180,1.38789725,127.88,127.74,2.0568]
[1740728797383,0.05343951,127.82,127.8,0.05007576]
[1740728797575,7.8325,127.81,127.8,0.05007576]
[1740728797779,29.4547,127.89,127.74,9.8935]
[1740728797977,7.8331,127.8,127.79,0.05403468]
[1740728798386,29.4547,127.89,127.74,2.0568]
[1740728798586,0.05320218,127.81,127.78,0.04945229]
[1740728798885,7.8331,127.8,127.74,2.0568]
[1740728799088,7.8331,127.8,127.78,0.05528701]
[1740728799484,7.89215654,127.8,127.78,0.05528701]
[1740728801082,0.05905654,127.8,127.78,0.05528701]
[1740728802289,7.8337,127.79,127.78,0.05528701]
[1740728803391,0.05905654,127.8,127.78,0.05528701]
[1740728803594,7.89235654,127.8,127.78,0.05528701]
[1740728803791,0.05905654,127.8,127.78,0.05528701]
[1740728804192,19.9847,127.89,127.78,7.88948701]
[1740728804387,19.9847,127.89,127.74,2.0568]
[1740728805289,19.9847,127.89,127.8,0.05396176]
[1740728805490,0.05379498,127.83,127.8,0.05396176]
[1740728805685,19.9847,127.89,127.74,2.0568]
[1740728805893,0.05411581,127.83,127.8,0.05855921]
[1740728806395,0.05957166,127.83,127.8,0.0580934]
[1740728806796,7.8325,127.81,127.8,0.0580934]
[1740728807098,0.05957166,127.83,127.8,0.0580934]
[1740728807297,0.05957166,127.83,127.81,7.8319]
[1740728807889,0.05957166,127.83,127.8,0.0580934]
[1740728807890,1.73681671,127.92,127.8,0.0580934]
[1740728808094,1.73681671,127.92,127.76,13.98]
[1740728808095,3.9883,127.91,127.76,13.98]
[1740728808301,1.73681671,127.92,127.76,208.98]
[1740728808998,7.8295,127.86,127.76,208.98]
[1740728809199,0.02520588,127.85,127.83,0.0555611]
[1740728809396,1.73681671,127.92,127.76,208.98]
[1740728809601,0.02520588,127.85,127.83,0.0538055]
[1740728809794,0.02520588,127.85,127.81,7.8319]
[1740728810000,0.02520588,127.84,127.82,0.05681288]
[1740728810202,0.02520588,127.84,127.76,208.98]
[1740728810403,7.8291,127.87,127.82,0.05288384]
[1740728810598,0.02520588,127.81,127.76,208.98]
[1740728810903,7.8299,127.86,127.76,212.9]
[1740728811202,1.73681671,127.92,127.82,7.8315]
[1740728811497,1.73681671,127.92,127.76,208.98]
[1740728811796,1.73681671,127.92,127.83,0.05339887]
[1740728812004,7.8283,127.88,127.76,208.98]
[1740728812296,1.73681671,127.92,127.86,0.05591372]
[1740728812491,1.73681671,127.92,127.76,208.98]
[1740728812690,1.73681671,127.92,127.77,1.43878702]
[1740728812903,4.0279,127.95,127.87,7.8283]
[1740728813095,7.8258,127.93,127.77,195.0]
[1740728813299,4.0279,127.95,127.78,1.4385857]
[1740728813502,4.0279,127.95,127.9,0.05387765]
[1740728813694,4.0279,127.95,127.88,7.8281]
[1740728813900,4.0279,127.95,127.91,0.05443434]
[1740728814100,4.0279,127.95,127.8,1.9646]
[1740728814398,4.0279,127.95,127.92,0.05246719]
[1740728814603,4.0279,127.95,127.84,7.8303]
[1740728814798,4.0279,127.95,127.81,2.0468]
[1740728814799,27.4779,127.95,127.81,2.0468]
[1740728814999,27.4779,127.95,127.83,7.8309]
[1740728815401,7.8292,127.87,127.83,7.8309]
[1740728815594,27.4779,127.95,127.85,7.8299]
[1740728815793,7.8277,127.89,127.85,7.8299]
[1740728816098,7.8277,127.89,127.86,7.8294]
[1740728816295,4.0279,127.95,127.86,0.05101688]
[1740728816497,0.05246719,127.89,127.81,2.0468]
[1740728816698,4.0279,127.95,127.89,0.05435627]
[1740728816892,4.0279,127.95,127.86,7.8291]
[1740728817098,0.05246719,127.92,127.91,0.05098724]
[1740728817298,4.0279,127.95,127.87,7.8285]
[1740728817499,0.05246719,127.93,127.9,0.06018362]
[1740728817798,4.0279,127.95,127.88,7.8278]
[1740728817993,0.05246719,127.93,127.9,0.05489394]
[1740728818298,214.6904,127.97,127.88,7.8279]
[1740728818503,214.6904,127.97,127.9,0.05623544]
[1740728818704,7.8264,127.91,127.9,0.05623544]
[1740728819302,7.8259,127.92,127.9,0.05623544]
[1740728819503,0.05246719,127.94,127.9,0.05623544]
[1740728819908,7.8264,127.91,127.9,0.05623544]
[1740728820102,0.05246719,127.94,127.9,0.05623544]
[1740728820806,0.05246719,127.94,127.91,7.826]
[1740728821106,0.05246719,127.94,127.91,1.9402]
[1740728821609,0.05246719,127.94,127.91,9.7662]
[1740728821802,0.05246719,127.94,127.91,1.9402]
[1740728822002,7.87746719,127.94,127.91,1.9402]
[1740728822204,0.05246719,127.94,127.9,0.05623544]
[1740728822601,0.05246719,127.94,127.83,7.8311]
[1740728822800,27.4292,127.94,127.81,198.9637]
[1740728823206,27.4292,127.94,127.82,7.8315]
[1740728823710,7.8296,127.86,127.82,7.8315]
[1740728823911,0.05792992,127.89,127.87,0.05746661]
[1740728824113,27.4292,127.94,127.81,3.9637]
[1740728824409,0.05315952,127.89,127.87,0.05637713]
[1740728824611,3.9792,127.94,127.87,0.05637713]
[1740728825304,0.05623712,127.92,127.87,0.05637713]
[1740728825504,0.05623712,127.92,127.81,198.9637]
[1740728825711,7.8253,127.93,127.88,7.88040123]
[1740728825910,7.8253,127.93,127.88,7.8281]
[1740728826213,7.87680611,127.92,127.89,0.05084069]
[1740728827507,0.05100611,127.92,127.89,0.05084069]
[1740728830507,7.827,127.9,127.89,0.05084069]
[1740728831514,7.8302,127.85,127.81,11.7956]
[1740728832315,7.8318,127.83,127.79,7.8335]
[1740728832710,1.8763,127.91,127.79,7.8335]
[1740728833017,0.0573683,127.83,127.79,7.8335]
[1740728833210,1.8763,127.91,127.84,0.0595601]
[1740728833513,0.05998131,127.89,127.86,0.0507037]
[1740728833710,13.96,127.88,127.78,7.8341]
[1740728833904,4.0226,127.87,127.78,7.8341]
[1740728834706,7.8317,127.83,127.79,7.8337]
[1740728834914,7.8317,127.83,127.81,0.04969685]
[1740728836309,0.06012416,127.84,127.81,0.04969685]
[1740728836512,7.89102416,127.84,127.81,0.04969685]
[1740728837212,0.06012416,127.84,127.81,0.04969685]
[1740728837513,7.8317,127.83,127.81,0.04969685]
[1740728837710,0.06012416,127.84,127.81,0.04969685]
[1740728837915,7.8319,127.82,127.81,0.04969685]
[1740728838118,0.06012416,127.84,127.7,13.96]
[1740728838417,7.8341,127.79,127.75,7.8361]
[1740728838915,7.8335,127.8,127.71,5.8416]
[1740728839320,0.05668829,127.77,127.74,0.05764991]
[1740728839819,0.05668829,127.77,127.76,7.8356]
[1740728840119,0.05668829,127.77,127.74,0.05764991]
[1740728840918,0.05668829,127.77,127.76,7.8356]
[1740728841315,0.05668829,127.77,127.74,0.05764991]
[1740728843122,0.05668829,127.77,127.74,7.89404991]
[1740728843323,0.05668829,127.77,127.74,0.05764991]
[1740728843324,7.89168829,127.77,127.74,0.05764991]
[1740728843820,7.8362,127.75,127.74,0.05764991]
[1740728844518,7.8358,127.76,127.74,0.05764991]
[1740728844918,7.89188829,127.77,127.74,0.05764991]
[1740728845121,0.05668829,127.77,127.74,0.05764991]
[1740728845521,7.8362,127.75,127.74,0.05764991]
[1740728845721,0.05668829,127.77,127.65,3.9686]
[1740728845919,23.45,127.77,127.62,1.9794]
[1740728846325,1.39334301,127.76,127.62,1.9794]
[1740728846515,1.39334301,127.76,127.62,9.8232]
[1740728846717,1.39334301,127.76,127.6,3.9317]
[1740728846920,0.05783951,127.7,127.68,0.05399947]
[1740728847118,0.05783951,127.7,127.6,3.9317]
[1740728847319,2.0026,127.7,127.59,1.9794]
[1740728847524,7.8459,127.6,127.56,117.2004214]
[1740728847827,23.45,127.69,127.56,117.2004214]
[1740728848027,1.39325444,127.68,127.56,117.2004214]
[1740728848227,0.05249285,127.64,127.61,0.05281418]
[1740728848425,0.05249285,127.64,127.56,117.2004214]
[1740728848730,13.98,127.65,127.51,4.021]
[1740728849122,13.98,127.65,127.51,11.8715]
[1740728849430,13.98,127.65,127.51,4.021]
[1740728849627,0.05151365,127.59,127.57,0.05227133]
[1740728850027,13.98,127.65,127.51,4.021]
[1740728850225,0.05555774,127.59,127.57,0.05218885]
[1740728850530,13.98,127.65,127.51,4.021]
[1740728850728,0.05449823,127.59,127.57,0.05145769]
[1740728851027,0.05449823,127.59,127.51,4.021]
[1740728851028,2.0019,127.64,127.51,4.021]
[1740728851224,2.0019,127.64,127.47,133.1078214]
[1740728851225,0.05811837,127.59,127.57,0.05191823]
[1740728851532,2.0019,127.64,127.38,13.98]
[1740728851533,13.98,127.58,127.38,13.98]
[1740728851719,15.9819,127.57,127.47,7.8532]
[1740728851920,15.9819,127.57,127.39,2.048]
[1740728852122,15.9819,127.57,127.4,1.44266385]
[1740728852319,213.06,127.67,127.4,1.44266385]
[1740728852627,0.05172211,127.55,127.52,0.05208666]
[1740728853029,15.9819,127.66,127.48,6.0979]
[1740728853230,15.9819,127.66,127.52,0.05217742]
[1740728853424,7.8434,127.64,127.48,6.0979]
[1740728853625,17.9476,127.66,127.49,1.4420339]
[1740728853824,17.9476,127.66,127.6,7.845]
[1740728854027,17.9476,127.66,127.48,6.0979]
[1740728854226,17.9476,127.66,127.53,7.8496]
[1740728854426,7.8479,127.56,127.48,6.0979]
[1740728854829,17.9476,127.66,127.52,7.8502]
[1740728855130,0.05814706,127.53,127.51,0.05476043]
[1740728855430,13.98,127.59,127.42,13.98]
[1740728855631,7.8503,127.52,127.51,0.05043062]
[1740728856023,17.8259,127.58,127.43,5.9484]
[1740728856331,0.05207384,127.53,127.5,0.04947191]
[1740728856630,0.05207384,127.53,127.43,5.9484]
[1740728856830,0.05207384,127.53,127.5,0.05726289]
[1740728857024,1.9655,127.57,127.43,5.9484]
[1740728857334,0.05131067,127.53,127.5,0.04937311]
[1740728858024,0.05131067,127.53,127.5,7.311e-05]
[1740728858231,0.05131067,127.53,127.43,1.8818]
[1740728858432,215.2855,127.57,127.43,1.8818]
[1740728858732,215.2855,127.57,127.42,7.8565]
[1740728858933,215.2855,127.57,127.41,1.56973549]
[1740728859434,0.05623027,127.5,127.48,9.14e-06]
[1740728859630,14.0,127.49,127.48,9.14e-06]